Cogmind - Beta 14 @@@ ROGUE MODE // 2024.09.07 @ 17:24:24 Player: star Result: Destroyed by HB-XR0(R) with Subdweller Machine Gun Performance ------------- Evolutions (0) 0 Regions Visited (2) 400 Robots Destroyed (4) 20 Value Destroyed (70) 70 Prototype IDs (0) 0 Alien Tech Used (0) 0 Bonus (0) 0 TOTAL SCORE: 490 Bonus ------- None Cogmind --------- Core Integrity 0/250 Matter 198/300 Energy 99/100 System Corruption 0% Temperature Cool (0) Movement Core (150) Ox2 Location -10/Subcaves Parts ------- > --- POWER (1) -------- (None) > --- PROPULSION (2) --- (None) > --- UTILITY (2) ------ Small Storage Unit Subdweller Optics > --- WEAPON (2) ------- (None) > --- INVENTORY (8) ---- Small Storage Unit Peak State ------------ > --- POWER ------------ Light Ion Engine > --- PROPULSION ------- Light Treads Wheel > --- UTILITY ---------- Small Storage Unit > --- WEAPON ----------- Assault Rifle Light Assault Rifle > --- INVENTORY -------- Light Treads Small Storage Unit [Rating: 6] Favorites ----------- Power Light Ion Engine Engine Light Ion Engine Propulsion Wheel Treads Light Treads Wheel Wheel Utility Small Storage Unit Device Subdweller Optics Storage Small Storage Unit Weapon Assault Rifle Ballistic Gun Assault Rifle Build | -11 -10 -10 ------- Run | Yrd Mat Sub Slots Evolved . | . . . Power . | . . . Propulsion . | . . . Utility . | . . . Weapon . | . . . Parts Attached 12 | 4 1 7 Power 1 | . 1 . Engine 1 | . 1 . Core . | . . . Reactor . | . . . Propulsion 7 | 2 . 5 Treads 4 | . . 4 Leg . | . . . Wheel 3 | 2 . 1 Hover . | . . . Flight . | . . . Utility 2 | . . 2 Device 1 | . . 1 Storage 1 | . . 1 Processor . | . . . Hackware . | . . . Protection . | . . . Artifact . | . . . Weapon 2 | 2 . . Energy Gun . | . . . Energy Cannon . | . . . Ballistic Gun 2 | 2 . . Ballistic Cannon . | . . . Launcher . | . . . Special Weapon . | . . . Impact Weapon . | . . . Slashing Weapon . | . . . Piercing Weapon . | . . . Special Melee Weapon . | . . . Unidentified Prototypes . | . . . Parts Lost 7 | . . 7 Power 1 | . . 1 Propulsion 4 | . . 4 Utility . | . . . Weapon 2 | . . 2 Highest Loss Streak 7 | . . 7 To Critical Strikes . | . . . Average Slot Usage (%) 59 | . 57 63 Engine 3 | . . 11 Treads 1 | . . 4 Wheel 24 | . 28 18 Storage 1 | . . 4 Ballistic Gun 25 | . 28 21 Peak Build Rating 6 | 4 5 6 Average Rating 4 | 3 4 4 On Entrance 3 | . 4 5 Naked Turns . | . . . Heaviest Build 11 | 3 6 11 Greatest Support 40 | 20 20 40 Greatest Overweight (x) 2 | . . 2 Average Overweight (x) . | . . . Largest Inventory Capacity 8 | 5 5 8 Average Capacity 5 | 5 5 5 Most Carried 5 | 4 5 4 Average Carried 3 | 2 4 3 Final Capacity 8 | 5 5 8 Final Carried 4 | 4 4 1 Class Distribution -------------------- 100% | Mutant Dominant Class ---------------- Mutant | -10/Materials Mutant | -10/Subcaves Resources | -11 -10 -10 ----------- Run | Yrd Mat Sub Matter Collected 282 | 240 . 42 Remotely . | . . . Salvage Created 80 | . . 80 Parts 4 | . . 4 Haulers Intercepted . | . . . Recyclers Shooed . | . . . Parts Field Recycled . | . . . Retrieved Matter . | . . . Parts Self-Destructed 4 | . . 4 Prevented . | . . . Kills | -11 -10 -10 ------- Run | Yrd Mat Sub Combat Hostiles Destroyed 4 | . . 4 Guns 4 | . . 4 Classes Destroyed 2 | . . 2 Swarmer 3 | . . 3 Subdweller 1 | . . 1 Best Kill Streak 3 | . . 3 Combat Bots Only 3 | . . 3 Max Kills in Single Turn 2 | . . 2 Gunslinging 1 | . . 1 Exploded . | . . . Melee . | . . . Uniques/NPCs Destroyed . | . . . Combat | -11 -10 -10 -------- Run | Yrd Mat Sub Hostile Shots Fired 63 | . . 63 Missed 14 | . . 14 Damage Taken 935 | . . 935 Core 266 | . . 266 Absorbed by Shields . | . . . Core Remaining (%) 100 | 100 . . Volleys Fired 27 | . . 27 Largest 2 | . . 2 Hottest 40 | . . 40 Shots Fired 45 | . . 45 Gun 45 | . . 45 Cannon . | . . . Launcher . | . . . Special . | . . . Kinetic 45 | . . 45 Thermal . | . . . Explosive . | . . . Electromagnetic . | . . . Robot Hit Streak 10 | . . 10 Robot Miss Streak 3 | . . 3 Penetration Max . | . . . Secondary Targets 2 | . . 2 Max Gunslinging Chain 1 | . . 1 Shots Hit Robots 30 | . . 30 Core Hits 9 | . . 9 Critical Kills . | . . . Critical Parts Destroyed . | . . . Critical Strikes . | . . . Melee Attacks . | . . . Impact . | . . . Slashing . | . . . Piercing . | . . . Sneak Attacks . | . . . Combat Hostiles . | . . . Follow-up Attacks . | . . . Damage Inflicted 277 | . . 277 Guns 277 | . . 277 Cannons . | . . . Explosions . | . . . Melee . | . . . Ramming . | . . . Kinetic 277 | . . 277 Thermal . | . . . Explosive . | . . . Electromagnetic . | . . . Impact . | . . . Slashing . | . . . Piercing . | . . . Highest Corruption . | . . . Average Corruption . | . . . Corruption Purged . | . . . Corruption Blocked . | . . . Overload Shots . | . . . Overflow Damage . | . . . Projectiles . | . . . Explosions . | . . . Melee . | . . . Knockbacks . | . . . Impact . | . . . Kinetic . | . . . Secondary . | . . . Self-Inflicted Damage . | . . . Shots . | . . . Rammed . | . . . Targets Rammed . | . . . Kicked . | . . . Crushed . | . . . Highest Temperature . | . . . Average Temperature . | . . . Received Heat Transfer . | . . . Siege Activations . | . . . Robots Corrupted . | . . . Combat Hostiles . | . . . Parts Fried . | . . . Impact Corruptions . | . . . Robots Melted . | . . . Combat Hostiles . | . . . Parts Melted . | . . . Heat Transferred . | . . . Parts Sabotaged . | . . . Parts Stolen . | . . . Parts Stripped . | . . . Power Chain Reactions . | . . . Alert | -11 -10 -10 ------- Run | Yrd Mat Sub Peak Influence . | . . . Initial . | . . . Average . | . . . Maximum Alert Level . | . . . Low Security (%) 100 | 100 100 . Level 1 . | . . . Level 2 . | . . . Level 3 . | . . . Level 4 . | . . . Level 5 . | . . . High Security . | . . . Max Security . | . . . Squads Dispatched . | . . . Investigation . | . . . Extermination . | . . . Reinforcement . | . . . Assault . | . . . Garrison . | . . . Intercept . | . . . Searches Triggered . | . . . Construction Impeded . | . . . Haulers Reinforced . | . . . Active Scanning Responses . | . . . Cargo Convoy Interrupts . | . . . Stealth | -11 -10 -10 --------- Run | Yrd Mat Sub Distress Signals . | . . . Communications Jammed . | . . . Distress Signals . | . . . Times Spotted 6 | . . 6 Peak Tracking Total 3 | . . 3 Tactical Retreats . | . . . Traps | -11 -10 -10 ------- Run | Yrd Mat Sub Traps Triggered . | . . . Indirectly . | . . . Trap Hack Attempts . | . . . Triggered . | . . . Disarmed . | . . . Reprogrammed . | . . . Reused . | . . . Traps Extracted . | . . . Installed . | . . . Triggered . | . . . Machines | -11 -10 -10 ---------- Run | Yrd Mat Sub Machines Disabled . | . . . Max in Single Turn . | . . . Machines Repaired . | . . . Machines Dismantled . | . . . Machines Sabotaged . | . . . Overloaded Fab Kills . | . . . Hacking | -11 -10 -10 --------- Run | Yrd Mat Sub Machines Accessed . | . . . Terminals . | . . . Fabricators . | . . . Repair Stations . | . . . Recycling Units . | . . . Scanalyzers . | . . . Garrison Access . | . . . Total Hacks . | . . . Successful . | . . . Failed . | . . . Catastrophic . | . . . Database Lockouts . | . . . Manual . | . . . Terminals . | . . . Fabricators . | . . . Repair Stations . | . . . Recycling Units . | . . . Scanalyzers . | . . . Garrison Access . | . . . Terminal Hacks . | . . . Fabricator Hacks . | . . . Repair Station Hacks . | . . . Recycling Unit Hacks . | . . . Scanalyzer . | . . . Garrison Access Hacks . | . . . Unauthorized Hacks . | . . . Terminals . | . . . Fabricators . | . . . Repair Stations . | . . . Recycling Units . | . . . Scanalyzers . | . . . Garrison Access . | . . . Data Cores Recovered . | . . . Used . | . . . Hacking Detections . | . . . Full Trace Events . | . . . Feedback Events . | . . . Feedback Blocked . | . . . Robot Schematics Acquired . | . . . Robots Built . | . . . Authchips . | . . . Time . | . . . Total Robot Build Rating . | . . . Part Schematics Acquired . | . . . Parts Built . | . . . Authchips . | . . . Time . | . . . Total Part Build Rating . | . . . Parts Repaired . | . . . Time . | . . . Parts Recycled . | . . . Recycled Matter . | . . . Retrieved Matter . | . . . Retrieved Components . | . . . Parts Scanalyzed . | . . . Part Schematics Acquired . | . . . Parts Damaged . | . . . Bothacking | -11 -10 -10 ------------ Run | Yrd Mat Sub Used RIF Installer . | . . . Robots Hacked . | . . . Non-combat . | . . . Combat . | . . . Robot Hacks Applied . | . . . Relay Couplers Released . | . . . Fabnet Peak Effective % . | . . . Robots Rewired . | . . . Allies Hacked . | . . . Hacks Repelled . | . . . Allies | -11 -10 -10 -------- Run | Yrd Mat Sub Total Allies . | . . . Largest Group . | . . . Highest-Rated Group . | . . . Highest-Rated Ally . | . . . Total Orders . | . . . Ally Attacks . | . . . Total Damage . | . . . Kills . | . . . Allies Corrupted . | . . . Allies Melted . | . . . Intel | -11 -10 -10 ------- Run | Yrd Mat Sub Robot Analysis Total . | . . . Derelict Logs Recovered 1 | . . 1 Drone Launches . | . . . Drone Recoveries . | . . . Exploration | -11 -10 -10 ------------- Run | Yrd Mat Sub Turns Passed 1061 | 44 676 341 Spaces Moved 366 | 43 53 270 Core 30 | 2 . 28 Treads 12 | . . 12 Legs . | . . . Wheels 324 | 41 53 230 Hover . | . . . Flight . | . . . Fastest Speed 50 | 50 80 80 Average Speed 87 | 78 80 90 Slowest Speed 160 | 80 80 160 Overloaded Moves . | . . . Propulsion Burnouts . | . . . Robots Hopped . | . . . Cave-ins Triggered . | . . . Exploration Rate (%) 14 | 3 8 31 Regions Visited 2 Branch Regions 1 Pre-discovered Areas . | . . . Known Exits Taken . | . . . Unknown Exits Taken 2 | 1 1 . Scrap Searched . | . . . Spaces Dug . | . . . Terrain Destroyed . | . . . Melee . | . . . Projectile . | . . . AOE . | . . . Terrain Rammed . | . . . Walls Destroyed . | . . . Machines Disabled . | . . . Actions | -11 -10 -10 --------- Run | Yrd Mat Sub Total 1062 | 51 686 325 Wait 653 | 1 632 20 Move 364 | 42 52 270 Hop . | . . . Pick Up 5 | 4 1 . Fast Attach 5 | 4 . 1 Attach 5 | . 1 4 Detach 1 | . . 1 Swap 2 | . . 2 Drop . | . . . Fire 27 | . . 27 Melee . | . . . Ram . | . . . Kick . | . . . Crush . | . . . Escape Stasis . | . . . Rewire . | . . . Trap . | . . . Miscellaneous . | . . . Route ------- -11/Scrapyard -10/Materials -10/Subcaves History --------- Turn | Location | Event 22 | -11/Scrapyard | Discovered new exit (range 16) 45 | -11/Scrapyard | Entered Materials 312 | -10/Materials | Build established: Mutant 678 | -10/Materials | Discovered new exit (range 8) 721 | -10/Materials | Entered Subcaves 724 | -10/Subcaves | Learned location of 1 exit from Materials 745 | -10/Subcaves | Ambushed by angry Subdweller bent on revenge 950 | -10/Subcaves | Shifting Twisted Machinery released Sub. Optics 1026 | -10/Subcaves | Core integrity fell below 50% 1027 | -10/Subcaves | Shifting Twisted Machinery released Mak. Sword 1044 | -10/Subcaves | Core integrity fell below 20% 1050 | -10/Subcaves | Lost 7 parts (1p4n2w) 1062 | -10/Subcaves | Destroyed by HB-XR0(R) with Subdweller Machine Gun Last Messages --------------- 00771_ Switching to secondary target: S-10 Pest. 00776_ S-10 Pest destroyed. 00776_ Switching to secondary target: S-10 Pest. 00776_ S-10 Pest destroyed. 00779_ Acquired 12 matter. 00783_ Flight Unit fries itself beyond repair. 00783_ Subatomizers dissect the Lgt. Ion Engine. 00785_ Flight Unit fries itself beyond repair. 00786_ Lgt. Ion Engine fries itself beyond repair. 00796_ Subatomizers dissect the Lgt. Ion Engine. Sub. Optics falls loose from the Twisted Machinery. 00950_ Wheel destroyed. HB-XR0(R) emerges from concealment. 00975_ Lgt. Assault Rifle destroyed. 00999_ Lgt. Ion Engine destroyed. 01003_ Assault Rifle destroyed. 01007_ Wheel destroyed. 01017_ Lgt. Treads destroyed. 01023_ Acquired Sub. Optics. Mak. Sword falls loose from the Twisted Machinery. Map ----- +----------------------------------------------------+ | ?????????????????????????????????????????????????? | | ?????????????????????????????????????????????????? | | ?????????????????????????????????????????????????? | | ?????????????????????????????????????????????????? | | ?????????????????????????????????????????????????? | | ?????????????????????????????????????????????????? | | ?????????????????????????????????????????????????? | | ?????????????????????????????????????????????????? | | ?????????????????????????????????????????????????? | | ?????????????????????????????????????????????????? | | ???????????????##????????????????????????????????? | | ???????????????? ##???###???????????????????????? | | ????????????????? #### #???????????##?????????? | | ??????????????????? #??????????? #?????????? | | ???????????????????? ##?????????? #?????????? | | ?????????????????????# ####?????? #?####????? | | ????????? ??????????# ######? ## #????? | | ????????" " "????????# ## #????? | | ?????????? "???????# #????? | | ???????????? ##????# #????? | | ??????????????# ?### R #????? | | ??????????????# # # R #????? | | ??????????????# ## ## #????? | | ??????????????# ## ##??????????? | | ??????????????# # # ## #???????????? | | ?????????????# ???# " @ #### ##???????????? | | ?????????? ?????## ###### #????????????? | | ?????????# ???????## ####### ## ##????????????? | | ??????????????????## #????# ##?????????????? | | ??????????????????# "" #???## ##?????????????? | | ????????????????? /"" ????# ##????????????? | | ??????????????? """"" ???## ##???????????? | | ??????????????# """ "" #### #???????????? | | ??????????????# """"" " ## #???????????? | | ?????????????# """ ??# " ## #???????????? | | ?????????????# ? """#?##"" ##? #???????????? | | ?????????????#???# ??# " ## ##???????????? | | ?????????????????# ### " ##???????????? | | ??????????????????# ## #???????????? | | ??????????????????# ## ##???????????? | | ???????????????????# ##????????????? | | ???????????????????### ##????????????? | | ????????????????????## #???????????? | | ???????# ???????????# ##???????????? | | ???????# ###??????# ### ##????????????? | | ???????# ??#?## ##?## #?????????????? | | ???????# ## #???## #?????????????? | | ??????????? # ##???# ##?????????????? | | ??????????????# ## ####?# #??????????????? | | ??????????????# ## #??## #?????????????? | +----------------------------------------------------+ Best States ------------- Heat Dissipation 25 Energy Generation 10 Energy Capacity 125 Matter Stores 300 Matter Capacity 300 Sight Range 21 Terrain Scan Density 10 Evasion (%) 44 Recoil Reduction 2 Item Schematics ----------------- None Robot Schematics ------------------ None Fabricated ------------ Nothing Alien Tech Used ----------------- None Achievements -------------- None Challenges ------------ None Game ------ Seed EncryptedHeatFlightbrick Manual? 0 Play Time 00:10:23 Cumulative 70.6 hours Start 2024.09.04 @ 11:32:47 End 2024.09.07 @ 17:24:24 Sessions 3 Manual Loads 0 Difficulty Rogue Special Mode None Game No. 129 Rogue 129 Adventurer 0 Explorer 0 Win Type - Total 0 Types 0/0/0/0/0/0/0/0/0 Lore% 35 Gallery% 46 Achievement% 37 Wizard Run 0 Options --------- Layout 0 ASCII 0 Keyboard 1 Movement Numpad Keybinds 0 Fullscreen 2 Font 18/SmallcapsGlow Map View 76x50 Zoom Use 0% Tactical HUD 1 Map Filters NONE Filters NONE Steam 1 RUN: 550536c1-bcf2-4548-b19b-c1eaf7907302